fUSD/lending_fUSD_20260607
["ID","MTS","AMOUNT","RATE_DAILY","PERIOD"]
[424318680,1780768250000,-250.0,0.00015378,2]
[424318683,1780768250000,-2000.0,0.00015379,2]
[424318681,1780768250000,-2000.0,0.00015379,2]
[424318618,1780768250000,-1000.0,0.00015,2]
[424318669,1780768250000,-350.0,0.00015258,2]
[424318655,1780768250000,-666.0,0.0001502,2]
[424318682,1780768250000,-2000.0,0.00015379,2]
[424318649,1780768250000,-300.0,0.0001502,2]
[424318653,1780768250000,-300.0,0.0001502,2]
[424318620,1780768250000,-1000.0,0.00015,2]
[424318621,1780768250000,-1000.0,0.00015,2]
[424318623,1780768250000,-1000.0,0.00015,2]
[424318629,1780768250000,-1000.0,0.00015,2]
[424318640,1780768250000,-2000.0,0.00015,2]
[424318639,1780768250000,-2000.0,0.00015,2]
[424318628,1780768250000,-1000.0,0.00015,2]
[424318634,1780768250000,-967.59,0.00015,2]
[424318632,1780768250000,-1000.0,0.00015,2]
[424318636,1780768250000,-151.0,0.00015,2]
[424318631,1780768250000,-1000.0,0.00015,2]
[424318633,1780768250000,-1000.0,0.00015,2]
[424318630,1780768250000,-1000.0,0.00015,2]
[424318619,1780768250000,-1000.0,0.00015,2]
[424318635,1780768250000,-150.0,0.00015,2]
[424318644,1780768250000,-196.99548107,0.00015,3]
[424318651,1780768250000,-300.0,0.0001502,2]
[424318646,1780768250000,-500.0,0.00015,2]
[424318648,1780768250000,-500.0,0.00015004,2]
[424318637,1780768250000,-200.0,0.00015,2]
[424318647,1780768250000,-236.2272307,0.00015,3]
[424318642,1780768250000,-2000.0,0.00015,2]
[424318652,1780768250000,-300.0,0.0001502,2]
[424318645,1780768250000,-184.05680767,0.00015,2]
[424318650,1780768250000,-671.85656189,0.0001502,2]
[424318643,1780768250000,-2000.0,0.00015,2]
[424318638,1780768250000,-2000.0,0.00015,2]
[424318641,1780768250000,-2000.0,0.00015,2]
[424318720,1780768251000,-2000.0,0.00015379,2]
[424318725,1780768251000,-2000.0,0.00015379,2]
[424318726,1780768251000,-2000.0,0.00015379,2]
[424318718,1780768251000,-2000.0,0.00015379,2]
[424318721,1780768251000,-2000.0,0.00015379,2]
[424318714,1780768251000,-2000.0,0.00015379,2]
[424318719,1780768251000,-2000.0,0.00015379,2]
[424318724,1780768251000,-2000.0,0.00015379,2]
[424318722,1780768251000,-2000.0,0.00015379,2]
[424318723,1780768251000,-2000.0,0.00015379,2]
[424318716,1780768251000,-591.79,0.00015379,2]
[424318717,1780768251000,-2000.0,0.00015379,2]
[424318731,1780768251000,-2000.0,0.00015379,2]
[424318728,1780768251000,-2000.0,0.00015379,2]
[424318729,1780768251000,-2000.0,0.00015379,2]
[424318736,1780768251000,-2000.0,0.00015379,2]
[424318730,1780768251000,-1502.6,0.00015379,2]
[424318737,1780768251000,-2000.0,0.00015379,2]
[424318739,1780768251000,-2000.0,0.00015379,2]
[424318738,1780768251000,-1626.08,0.00015379,2]
[424318733,1780768251000,-2000.0,0.00015379,2]
[424318735,1780768251000,-2000.0,0.00015379,2]
[424318734,1780768251000,-2000.0,0.00015379,2]
[424318715,1780768251000,-2000.0,0.00015379,2]
[424318741,1780768251000,-2000.0,0.00015379,2]
[424318727,1780768251000,-2000.0,0.00015379,2]
[424318712,1780768251000,-2000.0,0.00015379,2]
[424318695,1780768251000,-2000.0,0.00015379,2]
[424318710,1780768251000,-319.66,0.00015379,2]
[424318751,1780768251000,-831.07,0.00015517,2]
[424318686,1780768251000,-2000.0,0.00015379,2]
[424318688,1780768251000,-2000.0,0.00015379,2]
[424318685,1780768251000,-2000.0,0.00015379,2]
[424318689,1780768251000,-2000.0,0.00015379,2]
[424318687,1780768251000,-2000.0,0.00015379,2]
[424318693,1780768251000,-2000.0,0.00015379,2]
[424318692,1780768251000,-2000.0,0.00015379,2]
[424318701,1780768251000,-2000.0,0.00015379,2]
[424318698,1780768251000,-367.18,0.00015379,2]
[424318691,1780768251000,-2000.0,0.00015379,2]
[424318700,1780768251000,-2000.0,0.00015379,2]
[424318709,1780768251000,-2000.0,0.00015379,2]
[424318699,1780768251000,-2000.0,0.00015379,2]
[424318696,1780768251000,-2000.0,0.00015379,2]
[424318694,1780768251000,-2000.0,0.00015379,2]
[424318697,1780768251000,-2000.0,0.00015379,2]
[424318702,1780768251000,-2000.0,0.00015379,2]
[424318713,1780768251000,-2000.0,0.00015379,2]
[424318703,1780768251000,-2000.0,0.00015379,2]
[424318705,1780768251000,-2000.0,0.00015379,2]
[424318704,1780768251000,-2000.0,0.00015379,2]
[424318711,1780768251000,-2000.0,0.00015379,2]
[424318707,1780768251000,-2000.0,0.00015379,2]
[424318706,1780768251000,-2000.0,0.00015379,2]
[424318708,1780768251000,-2000.0,0.00015379,2]
[424318690,1780768251000,-2000.0,0.00015379,2]
[424318753,1780768251000,-831.07,0.00015519,2]
[424318732,1780768251000,-2000.0,0.00015379,2]
[424318746,1780768251000,-350.0,0.00015494,2]
[424318773,1780768251000,-300.0,0.00015596,2]
[424318776,1780768251000,-15000.0,0.00015597,2]
[424318774,1780768251000,-300.0,0.00015596,2]
[424318777,1780768251000,-300.0,0.00015599,2]
[424318775,1780768251000,-300.0,0.00015596,2]
[424318781,1780768251000,-300.0,0.00015599,2]
[424318792,1780768251000,-350.0,0.00015626,2]
[424318791,1780768251000,-200.0,0.00015609,2]
[424318780,1780768251000,-300.0,0.00015599,2]
[424318782,1780768251000,-500.0,0.00015599,2]
[424318788,1780768251000,-300.0,0.00015605,2]
[424318784,1780768251000,-1673.92507737,0.000156,2]
[424318772,1780768251000,-300.0,0.00015596,2]
[424318785,1780768251000,-300.0,0.00015605,2]
[424318783,1780768251000,-10232.05744396,0.000156,2]
[424318786,1780768251000,-300.0,0.00015605,2]
[424318789,1780768251000,-300.0,0.00015605,2]
[424318794,1780768251000,-13308.1946628,0.00015631,2]
[424318793,1780768251000,-500.0,0.0001563,2]
[424318796,1780768251000,-941.5914996,0.00015717,2]
[424318797,1780768251000,-300.0,0.00015739,2]
[424318795,1780768251000,-941.5914996,0.00015714,2]
[424318799,1780768251000,-300.0,0.00015739,2]
[424318798,1780768251000,-413.05991736,0.00015739,2]
[424318800,1780768251000,-15000.0,0.0001574,2]
[424318752,1780768251000,-831.07,0.00015517,2]
[424318790,1780768251000,-10000.0,0.00015606,2]
[424318767,1780768251000,-10000.0,0.00015568,2]
[424318787,1780768251000,-300.0,0.00015605,2]
[424318769,1780768251000,-1191.11104074,0.00015581,2]
[424318742,1780768251000,-2000.0,0.00015379,2]
[424318770,1780768251000,-1734.62772924,0.00015581,2]
[424318750,1780768251000,-831.07,0.00015515,2]
[424318744,1780768251000,-200.0,0.00015455,2]
[424318743,1780768251000,-1375.66,0.00015379,2]
[424318748,1780768251000,-1673.92507737,0.000155,2]
[424318740,1780768251000,-2000.0,0.00015379,2]
[424318749,1780768251000,-831.07,0.00015513,2]
[424318745,1780768251000,-13308.1946628,0.00015487,2]
[424318754,1780768251000,-831.07,0.00015519,2]
[424318756,1780768251000,-500.0,0.00015521,2]
[424318765,1780768251000,-300.0,0.00015567,2]
[424318762,1780768251000,-300.0,0.00015567,2]
[424318747,1780768251000,-10232.05744396,0.000155,2]
[424318755,1780768251000,-500.0,0.00015521,2]
[424318771,1780768251000,-300.0,0.00015596,2]
[424318778,1780768251000,-300.0,0.00015599,2]
[424318768,1780768251000,-13308.1946628,0.00015578,2]
[424318779,1780768251000,-300.0,0.00015599,2]
[424318757,1780768251000,-500.0,0.00015521,2]
[424318760,1780768251000,-13308.1946628,0.00015535,2]
[424318761,1780768251000,-13308.1946628,0.00015563,2]
[424318764,1780768251000,-300.0,0.00015567,2]
[424318759,1780768251000,-831.07,0.00015521,2]
[424318766,1780768251000,-300.0,0.00015567,2]
[424318758,1780768251000,-831.07,0.00015521,2]
[424318763,1780768251000,-300.0,0.00015567,2]
[424318845,1780768252000,-1798.80895522,0.00016129,2]
[424318843,1780768252000,-9999.99,0.00016116,2]
[424318839,1780768252000,-10232.05744396,0.000161,2]
[424318841,1780768252000,-301.79013786,0.000161,2]
[424318849,1780768252000,-301.79013786,0.000162,2]
[424318842,1780768252000,-2237.94,0.00016116,2]
[424318846,1780768252000,-338.83525232,0.0001614,2]
[424318840,1780768252000,-1673.92507737,0.000161,2]
[424318844,1780768252000,-1235.18214925,0.00016129,2]
[424318837,1780768252000,-1125.0,0.00016051,2]
[424318847,1780768252000,-911.32,0.000162,2]
[424318838,1780768252000,-500.0,0.00016099,2]
[424318850,1780768252000,-350.0,0.00016211,2]
[424318848,1780768252000,-1408.35,0.000162,2]
[424318859,1780768252000,-500.0,0.00016425,2]
[424318863,1780768252000,-1152.25,0.00016438,2]
[424318858,1780768252000,-1673.92507737,0.000164,2]
[424318851,1780768252000,-10232.05744396,0.000163,2]
[424318853,1780768252000,-231.17415568,0.0001631,2]
[424318856,1780768252000,-350.0,0.00016345,2]
[424318855,1780768252000,-200.0,0.0001634,2]
[424318862,1780768252000,-1131.83,0.00016438,2]
[424318860,1780768252000,-156.05680435,0.00016435,2]
[424318861,1780768252000,-2084.68,0.00016438,2]
[424318852,1780768252000,-1673.92507737,0.000163,2]
[424318854,1780768252000,-434.34611126,0.0001631,2]
[424318864,1780768252000,-900.0,0.00016438,2]
[424318875,1780768252000,-2000.0,0.00016724,7]
[424318874,1780768252000,-168.33,0.00016712,2]
[424318835,1780768252000,-300.0,0.00016,2]
[424318857,1780768252000,-10232.05744396,0.000164,2]
[424318836,1780768252000,-301.79013786,0.00016,2]
[424318806,1780768252000,-1673.92507737,0.000158,2]
[424318822,1780768252000,-941.5914996,0.00015902,2]
[424318801,1780768252000,-941.5914996,0.00015766,2]
[424318802,1780768252000,-300.0,0.00015768,2]
[424318805,1780768252000,-10232.05744396,0.000158,2]
[424318803,1780768252000,-941.5914996,0.00015792,2]
[424318804,1780768252000,-941.5914996,0.00015798,2]
[424318808,1780768252000,-941.5914996,0.00015804,2]
[424318817,1780768252000,-941.5914996,0.00015861,2]
[424318819,1780768252000,-941.5914996,0.00015872,2]
[424318818,1780768252000,-941.5914996,0.0001587,2]
[424318820,1780768252000,-941.5914996,0.00015891,2]
[424318807,1780768252000,-10000.0,0.00015802,2]
[424318810,1780768252000,-941.5914996,0.00015811,2]
[424318812,1780768252000,-941.5914996,0.00015839,2]
[424318816,1780768252000,-941.5914996,0.00015859,2]
[424318815,1780768252000,-941.5914996,0.00015857,2]
[424318814,1780768252000,-941.5914996,0.00015855,2]
[424318809,1780768252000,-2275.15039142,0.00015807,2]
[424318830,1780768252000,-941.5914996,0.00015996,2]
[424318834,1780768252000,-1673.92507737,0.00016,2]
[424318831,1780768252000,-152.0,0.00016,2]
[424318833,1780768252000,-10232.05744396,0.00016,2]
[424318829,1780768252000,-2000.0,0.00015986,2]
[424318827,1780768252000,-941.5914996,0.00015981,2]
[424318832,1780768252000,-779.1455433,0.00016,2]
[424318826,1780768252000,-941.5914996,0.00015975,2]
[424318824,1780768252000,-525.8016713,0.00015973,2]
[424318823,1780768252000,-695.03875859,0.00015973,2]
[424318825,1780768252000,-500.0,0.00015973,2]
[424318821,1780768252000,-941.5914996,0.00015901,2]
[424318811,1780768252000,-941.5914996,0.00015838,2]
[424318813,1780768252000,-35866.50881551,0.00015846,2]
[424318828,1780768252000,-941.5914996,0.00015984,2]
[424318870,1780768252000,-343.20954169,0.00016653,2]
[424318866,1780768252000,-1000.0,0.000165,2]
[424318865,1780768252000,-6623.63161413,0.000165,2]
[424318908,1780768252000,-10232.05744396,0.000176,2]
[424318910,1780768252000,-794.10843908,0.000177,2]
[424318916,1780768252000,-1408.35,0.000178,2]
[424318911,1780768252000,-1377.42282658,0.00017773,2]
[424318913,1780768252000,-154.52,0.00017776,2]
[424318906,1780768252000,-28736.2,0.00017572,2]
[424318914,1780768252000,-1125.0,0.00017785,2]
[424318917,1780768252000,-180.9153,0.00018,2]
[424318909,1780768252000,-156.05680435,0.00017668,2]
[424318918,1780768252000,-3577.39912719,0.00018,2]
[424318915,1780768252000,-10232.05744396,0.000178,2]
[424318912,1780768252000,-2005.9555727,0.00017773,2]
[424318920,1780768252000,-10232.05744396,0.00018,2]
[424318919,1780768252000,-1802.4876194,0.00018,2]
[424318922,1780768252000,-350.0,0.00018,2]
[424318927,1780768252000,-10232.05744396,0.000182,2]
[424318923,1780768252000,-1048.55,0.00018082,2]
[424318872,1780768252000,-1280.88388877,0.00016677,2]
[424318937,1780768252000,-693.39197629,0.00018321,2]
[424318936,1780768252000,-200.0,0.00018321,2]
[424318934,1780768252000,-174.61919141,0.00018321,2]
[424318933,1780768252000,-151.0,0.00018321,2]
[424318929,1780768252000,-500.0,0.0001832,2]
[424318907,1780768252000,-1600.69,0.00017572,2]
[424318926,1780768252000,-2438.10380057,0.000182,2]
[424318921,1780768252000,-2438.10380057,0.00018,2]
[424318930,1780768252000,-209.40437684,0.00018321,2]
[424318931,1780768252000,-693.39197629,0.00018321,2]
[424318932,1780768252000,-151.0,0.00018321,2]
[424318924,1780768252000,-3577.39912719,0.000182,2]
[424318925,1780768252000,-1802.4876194,0.000182,2]
[424318928,1780768252000,-10232.05744396,0.000183,2]
[424318905,1780768252000,-423.33,0.00017572,2]
[424318935,1780768252000,-151.0,0.00018321,2]
[424318897,1780768252000,-1959.6,0.00017424,2]
[424318885,1780768252000,-2022.14,0.00016931,2]
[424318890,1780768252000,-35866.50881551,0.00017185,2]
[424318878,1780768252000,-10232.05744396,0.000168,2]
[424318887,1780768252000,-1117.68,0.00016932,2]
[424318886,1780768252000,-1097.88,0.00016931,2]
[424318879,1780768252000,-1673.92507737,0.000168,2]
[424318881,1780768252000,-500.0,0.00016877,2]
[424318880,1780768252000,-200.0,0.000168,3]
[424318871,1780768252000,-173.19291251,0.00016653,2]
[424318868,1780768252000,-10232.05744396,0.000166,2]
[424318876,1780768252000,-500.0,0.0001679,2]
[424318869,1780768252000,-1673.92507737,0.000166,2]
[424318867,1780768252000,-500.0,0.00016599,2]
[424318894,1780768252000,-10232.05744396,0.000173,2]
[424318877,1780768252000,-2000.0,0.0001679,2]
[424318888,1780768252000,-1159.39304982,0.00017,2]
[424318873,1780768252000,-1865.36488656,0.00016677,2]
[424318889,1780768252000,-10232.05744396,0.000171,2]
[424318883,1780768252000,-10232.05744396,0.000169,2]
[424318899,1780768252000,-2500.0,0.00017429,2]
[424318898,1780768252000,-1083.11,0.00017425,2]
[424318900,1780768252000,-1400.0,0.00017429,2]
[424318904,1780768252000,-4318.95,0.00017572,2]
[424318895,1780768252000,-695.07937659,0.00017329,2]
[424318901,1780768252000,-1650.0,0.00017429,7]
[424318891,1780768252000,-1328.27659266,0.00017225,2]
[424318882,1780768252000,-1125.0,0.00016896,2]
[424318902,1780768252000,-500.0,0.00017439,2]
[424318884,1780768252000,-1673.92507737,0.000169,2]
[424318896,1780768252000,-10232.05744396,0.000174,2]
[424318903,1780768252000,-2000.0,0.0001744,2]
[424318893,1780768252000,-500.0,0.00017299,2]
[424318892,1780768252000,-1934.38338736,0.00017225,2]
[424318973,1780768253000,-1000.0,0.00018321,2]
[424318985,1780768253000,-152.0,0.00018321,2]
[424318969,1780768253000,-1000.0,0.00018321,2]
[424318967,1780768253000,-151.0,0.00018321,2]
[424318970,1780768253000,-151.0,0.00018321,2]
[424318975,1780768253000,-151.0,0.00018321,2]
[424318977,1780768253000,-151.0,0.00018321,2]
[424318976,1780768253000,-152.0,0.00018321,2]
[424318986,1780768253000,-151.0,0.00018321,2]
[424318979,1780768253000,-500.0,0.00018321,2]
[424318978,1780768253000,-1000.0,0.00018321,2]
[424318980,1780768253000,-1000.0,0.00018321,2]
[424318974,1780768253000,-151.0,0.00018321,2]
[424318989,1780768253000,-151.0,0.00018321,2]
[424318982,1780768253000,-151.0,0.00018321,2]
[424318981,1780768253000,-151.0,0.00018321,2]
[424318983,1780768253000,-500.0,0.00018321,2]
[424318987,1780768253000,-152.0,0.00018321,2]
[424318990,1780768253000,-151.0,0.00018321,2]
[424318998,1780768253000,-152.0,0.00018321,2]
[424318988,1780768253000,-500.0,0.00018321,2]
[424318992,1780768253000,-151.0,0.00018321,2]
[424318999,1780768253000,-151.0,0.00018321,2]
[424318994,1780768253000,-152.0,0.00018321,2]
[424318991,1780768253000,-152.0,0.00018321,2]
[424318968,1780768253000,-152.0,0.00018321,2]
[424318993,1780768253000,-500.0,0.00018321,2]
[424318984,1780768253000,-151.0,0.00018321,2]
[424318962,1780768253000,-151.0,0.00018321,2]
[424318958,1780768253000,-209.40437684,0.00018321,2]
[424318971,1780768253000,-721.12765534,0.00018321,2]
[424318995,1780768253000,-151.0,0.00018321,2]
[424318938,1780768253000,-151.0,0.00018321,2]
[424318940,1780768253000,-160.0,0.00018321,2]
[424318942,1780768253000,-209.40437684,0.00018321,2]
[424318945,1780768253000,-578.20924308,0.00018321,2]
[424318944,1780768253000,-9552.16786547,0.00018321,2]
[424318946,1780768253000,-151.0,0.00018321,2]
[424318939,1780768253000,-1428.38747117,0.00018321,2]
[424318941,1780768253000,-151.0,0.00018321,2]
[424318943,1780768253000,-200.0,0.00018321,2]
[424318947,1780768253000,-151.0,0.00018321,2]
[424318955,1780768253000,-151.0,0.00018321,2]
[424318951,1780768253000,-1000.0,0.00018321,2]
[424318961,1780768253000,-151.0,0.00018321,2]
[424318948,1780768253000,-151.0,0.00018321,2]
[424318960,1780768253000,-1000.0,0.00018321,2]
[424318954,1780768253000,-151.0,0.00018321,2]
[424318959,1780768253000,-2080.17592889,0.00018321,2]
[424318952,1780768253000,-500.0,0.00018321,2]
[424318957,1780768253000,-151.0,0.00018321,2]
[424318950,1780768253000,-151.0,0.00018321,2]
[424318953,1780768253000,-209.40437684,0.00018321,2]
[424318949,1780768253000,-1000.0,0.00018321,2]
[424318966,1780768253000,-1000.0,0.00018321,2]
[424318963,1780768253000,-1000.0,0.00018321,2]
[424318965,1780768253000,-6240.52778667,0.00018321,2]
[424318972,1780768253000,-500.0,0.00018321,2]
[424318964,1780768253000,-151.0,0.00018321,2]
[424318956,1780768253000,-1000.0,0.00018321,2]
[424318996,1780768253000,-151.0,0.00018321,2]
[424319010,1780768253000,-152.0,0.00018321,2]
[424319001,1780768253000,-500.0,0.00018321,2]
[424319032,1780768253000,-3577.39912719,0.000185,2]
[424319030,1780768253000,-151.0,0.00018486,2]
[424319031,1780768253000,-6959.17232007,0.00018486,2]
[424319034,1780768253000,-2438.10380057,0.000185,2]
[424319036,1780768253000,-35866.50881551,0.00018525,2]
[424319033,1780768253000,-1802.4876194,0.000185,2]
[424319035,1780768253000,-10232.05744396,0.000185,2]
[424319037,1780768253000,-801.85129954,0.00018541,2]
[424319042,1780768253000,-7483.67817866,0.00018596,2]
[424319043,1780768253000,-862.28603014,0.00018651,2]
[424319044,1780768253000,-151.0,0.00018651,2]
[424319046,1780768253000,-3577.39912719,0.000187,2]
[424319045,1780768253000,-5451.74277264,0.00018651,2]
[424319048,1780768253000,-2438.10380057,0.000187,2]
[424319047,1780768253000,-1802.4876194,0.000187,2]
[424319050,1780768253000,-894.19061325,0.00018706,2]
[424319049,1780768253000,-10232.05744396,0.000187,2]
[424319051,1780768253000,-151.0,0.00018706,2]
[424319052,1780768253000,-1125.0,0.00018721,2]
[424319057,1780768253000,-151.0,0.00018816,2]
[424319054,1780768253000,-151.0,0.00018761,2]
[424319056,1780768253000,-961.58486558,0.00018816,2]
[424319053,1780768253000,-927.27566594,0.00018761,2]
[424319055,1780768253000,-213.58335676,0.00018815,2]
[424319058,1780768253000,-161.34886219,0.00018858,2]
[424318997,1780768253000,-500.0,0.00018321,2]
[424319060,1780768253000,-151.0,0.00018868,2]
[424319028,1780768253000,-500.0,0.00018485,2]
[424319041,1780768253000,-151.0,0.00018596,2]
[424319059,1780768253000,-151.0,0.00018868,2]
[424319040,1780768253000,-831.51979762,0.00018596,2]
[424319039,1780768253000,-7216.66169591,0.00018541,2]
[424319000,1780768253000,-151.0,0.00018321,2]
[424319013,1780768253000,-500.0,0.00018321,2]
[424319011,1780768253000,-151.0,0.00018321,2]
[424319014,1780768253000,-151.0,0.00018321,2]
[424319012,1780768253000,-500.0,0.00018321,2]
[424319002,1780768253000,-152.0,0.00018321,2]
[424319005,1780768253000,-151.0,0.00018321,2]
[424319008,1780768253000,-151.0,0.00018321,2]
[424319006,1780768253000,-152.0,0.00018321,2]
[424319007,1780768253000,-152.0,0.00018321,2]
[424319004,1780768253000,-500.0,0.00018321,2]
[424319003,1780768253000,-151.0,0.00018321,2]
[424319022,1780768253000,-231.01520189,0.000184,2]
[424319009,1780768253000,-500.0,0.00018321,2]
[424319024,1780768253000,-4581.8,0.0001841,2]
[424319038,1780768253000,-151.0,0.00018541,2]
[424319029,1780768253000,-773.24136889,0.00018486,2]
[424319027,1780768253000,-6710.87012543,0.00018431,2]
[424319021,1780768253000,-231.0152019,0.000184,2]
[424319023,1780768253000,-231.01520189,0.000184,2]
[424319018,1780768253000,-3577.39912719,0.000184,2]
[424319016,1780768253000,-151.0,0.00018376,2]
[424319019,1780768253000,-1802.4876194,0.000184,2]
[424319017,1780768253000,-6471.42731478,0.00018376,2]
[424319015,1780768253000,-719.04747942,0.00018376,2]
[424319020,1780768253000,-2438.10380057,0.000184,2]
[424319026,1780768253000,-151.0,0.00018431,2]
[424319025,1780768253000,-745.65223615,0.00018431,2]
[424319096,1780768254000,-500.0,0.00018999,2]
[424319099,1780768254000,-500.0,0.00018999,2]
[424319102,1780768254000,-500.0,0.00018999,2]
[424319100,1780768254000,-500.0,0.00018999,2]
[424319093,1780768254000,-500.0,0.00018999,2]
[424319098,1780768254000,-500.0,0.00018999,2]
[424319095,1780768254000,-500.0,0.00018999,2]
[424319097,1780768254000,-500.0,0.00018999,2]
[424319086,1780768254000,-1013.98,0.00018904,2]
[424319091,1780768254000,-500.0,0.00018999,2]
[424319105,1780768254000,-500.0,0.00018999,2]
[424319101,1780768254000,-500.0,0.00018999,2]
[424319116,1780768254000,-500.0,0.00018999,2]
[424319104,1780768254000,-500.0,0.00018999,2]
[424319107,1780768254000,-500.0,0.00018999,2]
[424319118,1780768254000,-500.0,0.00018999,2]
[424319112,1780768254000,-500.0,0.00018999,2]
[424319117,1780768254000,-500.0,0.00018999,2]
[424319108,1780768254000,-500.0,0.00018999,2]
[424319106,1780768254000,-500.0,0.00018999,2]
[424319111,1780768254000,-500.0,0.00018999,2]
[424319110,1780768254000,-500.0,0.00018999,2]
[424319113,1780768254000,-500.0,0.00018999,2]
[424319109,1780768254000,-500.0,0.00018999,2]
[424319087,1780768254000,-151.0,0.00018997,2]
[424319103,1780768254000,-500.0,0.00018999,2]
[424319090,1780768254000,-500.0,0.00018999,2]
[424319075,1780768254000,-2157.14243826,0.00018869,2]
[424319083,1780768254000,-2438.10380057,0.000189,2]
[424319064,1780768254000,-217.15233878,0.00018869,2]
[424319061,1780768254000,-151.0,0.00018868,2]
[424319067,1780768254000,-200.0,0.00018869,2]
[424319070,1780768254000,-200.0,0.00018869,2]
[424319068,1780768254000,-719.04747942,0.00018869,2]
[424319069,1780768254000,-1481.2378076,0.00018869,2]
[424319062,1780768254000,-151.0,0.00018868,2]
[424319065,1780768254000,-151.0,0.00018869,2]
[424319063,1780768254000,-151.0,0.00018868,2]
[424319066,1780768254000,-181.08010149,0.00018869,2]
[424319072,1780768254000,-500.0,0.00018869,2]
[424319074,1780768254000,-217.15233878,0.00018869,2]
[424319092,1780768254000,-216.38,0.00018999,2]
[424319071,1780768254000,-9905.59807649,0.00018869,2]
[424319073,1780768254000,-217.15233878,0.00018869,2]
[424319080,1780768254000,-500.0,0.00018899,2]
[424319078,1780768254000,-997.16350561,0.00018871,2]
[424319077,1780768254000,-151.0,0.00018869,2]
[424319082,1780768254000,-1802.4876194,0.000189,2]
[424319079,1780768254000,-151.0,0.00018871,2]
[424319081,1780768254000,-3577.39912719,0.000189,2]
[424319094,1780768254000,-500.0,0.00018999,2]
[424319084,1780768254000,-10232.05744396,0.000189,2]
[424319085,1780768254000,-156.05680435,0.000189,2]
[424319089,1780768254000,-500.0,0.00018999,2]
[424319088,1780768254000,-500.0,0.00018999,2]
[424319076,1780768254000,-151.0,0.00018869,2]
[424319114,1780768254000,-500.0,0.00018999,2]
[424319115,1780768254000,-500.0,0.00018999,2]
[424319121,1780768254000,-500.0,0.00018999,2]
[424319153,1780768254000,-333.170844,0.00019,2]
[424319154,1780768254000,-333.170844,0.00019,2]
[424319160,1780768254000,-500.0,0.00019,2]
[424319155,1780768254000,-2532.201305,0.00019,2]
[424319152,1780768254000,-333.170844,0.00019,2]
[424319161,1780768254000,-500.0,0.00019,2]
[424319162,1780768254000,-500.0,0.00019,2]
[424319156,1780768254000,-2532.201305,0.00019,2]
[424319158,1780768254000,-2532.201305,0.00019,2]
[424319157,1780768254000,-2532.201305,0.00019,2]
[424319159,1780768254000,-500.0,0.00019,2]
[424319164,1780768254000,-500.0,0.00019,2]
[424319151,1780768254000,-333.170844,0.00019,2]
[424319163,1780768254000,-500.0,0.00019,2]
[424319165,1780768254000,-500.0,0.00019,2]
[424319174,1780768254000,-500.0,0.00019,2]
[424319176,1780768254000,-500.0,0.00019,2]
[424319169,1780768254000,-500.0,0.00019,2]
[424319167,1780768254000,-500.0,0.00019,2]
[424319171,1780768254000,-500.0,0.00019,2]
[424319172,1780768254000,-500.0,0.00019,2]
[424319168,1780768254000,-500.0,0.00019,2]
[424319170,1780768254000,-500.0,0.00019,2]
[424319173,1780768254000,-500.0,0.00019,2]
[424319177,1780768254000,-500.0,0.00019,2]
[424319119,1780768254000,-500.0,0.00018999,2]
[424319175,1780768254000,-500.0,0.00019,2]
[424319145,1780768254000,-194.712125,0.00019,2]